[Event "44th Chess Olympiad Open 2022"]
[Site "Chennai"]
[Date "2022.07.30"]
[Round "2.63"]
[White "Lwebuga, Ronald"]
[Black "Tsige, Addisalem Temesgen"]
[Result "1/2-1/2"]
[ECO "A04"]
[WhiteElo "1818"]
[BlackElo "2072"]
[Annotator "TA"]
[PlyCount "124"]
[EventDate "2022.07.29"]
[EventType "team-tourn"]
[EventCountry "IND"]
[SourceTitle "playchess.com"]
[Source "ChessBase"]
[SourceQuality "1"]
[WhiteTeam "SLE"]
[BlackTeam "Ethiopia"]
[BlackTeamCountry "ETH"]
[TimeControl "40/5400+30:1800+30"]

{[%evp 16,124,30,30,27,17,32,9,42,23,82,32,42,50,172,167,170,162,174,163,182,160,187,147,187,184,244,194,202,177,391,402,380,195,195,196,191,178,243,228,231,231,227,208,211,188,223,220,206,167,236,150,196,143,159,155,202,211,229,218,201,198,217,182,247,245,266,188,239,233,325,321,414,404,445,438,497,476,706,700,680,679,740,730,970,787,779,762,858,311,354,346,358,358,346,331,351,327,391,393,367,340,342,333,321,6,8,8,256,0,0]} 1. Nf3 {[%emt 0:00:04]} c5 {[%emt 0:00:33]} 2. c4 {[%emt 0:00:16]} Nc6 {[%emt 0:00:11]} 3. g3 {[%emt 0:00:12]} g6 {[%emt 0:00:08]} 4. d4 {[%emt 0:00:34]} cxd4 {[%emt 0:00:10]} 5. Nxd4 {[%emt 0:00:07]} Bg7 {[%emt 0:00:12]} 6. Nxc6 {[%emt 0:00:28]} bxc6 {[%emt 0:00:15]} 7. Nc3 {[%emt 0:00:28]} Nf6 {[%emt 0:00:08]} 8. Bg2 {[%emt 0:00:10]} O-O {[%emt 0:00:04]} 9. O-O {[%emt 0:00:11]} Qa5 {[%emt 0:00:11] A04: Unusual lines after 1 Nf3 and King's Indian Attack.} 10. Bd2 {[%emt 0:00:26]} Rb8 {[%emt 0:01:28]} 11. Qc2 {[%emt 0:00:25]} Qc7 {[%emt 0:04:20][%cal Od7d5]} 12. Rac1 {[%emt 0:03:06] [#]} Rd8 $146 {[%emt 0:01:10]} (12... d6 $11) ({Predecessor:} 12... d6 13. b3 Nd7 14. Na4 c5 15. Bc3 Bb7 16. Bxg7 Kxg7 17. Nc3 Bxg2 18. Kxg2 Qb7+ {½-½ (34) Libertou,M-Kouvatsou,M (2145) Athens 1996}) 13. e4 {[%emt 0:00:18] White is more active.} (13. c5 $16) 13... Ba6 $14 {[%emt 0:00:45]} 14. b3 {[%emt 0:00:46]} d5 {[%emt 0:05:58]} ({Black should try} 14... d6 $14) 15. exd5 $18 {[%emt 0:01:57]} cxd5 {[%emt 0:00:15]} 16. Nxd5 {[%emt 0:05:57]} Nxd5 {[%emt 0:00:23]} 17. Bxd5 {[%emt 0:00:29]} Bd4 {[%emt 0:10:47]} 18. Rfe1 {[%emt 0:09:12]} Rbc8 {[%emt 0:02:52][%cal Od8d5] Strongly threatening ...Rxd5!} 19. Bg2 {[%emt 0:01:12]} h5 {[%emt 0:00:33]} 20. Bg5 {[%emt 0:05:06]} Re8 {[%emt 0:04:07]} (20... Bf6 $142) 21. Rcd1 {[%emt 0:01:12]} e5 {[%emt 0:03:45]} 22. Bd5 {[%emt 0:02:14] Intending Qxg6+ and mate.} Qd6 {[%emt 0:02:18]} (22... Kg7 {might work better.} 23. Qd2 Bb7) 23. Qe4 {[%emt 0:04:03]} Kg7 {[%emt 0:01:33]} 24. Qf3 {[%emt 0:05:06]} (24. Rxd4 $142 {[%cal Od5f7] Bxf7! is the strong threat.} exd4 25. Be7 (25. Qxd4+ f6 $16) 25... Rxe7 26. Qxe7 Qxe7 27. Rxe7) 24... f6 {[%emt 0:05:07]} 25. Be3 {[%emt 0:01:01]} Bxe3 {[%emt 0:10:20]} 26. Qxe3 {[%emt 0:00:31][%cal Od5b7]} (26. fxe3 Qe7 27. e4 Rc7) 26... Qc7 {[%emt 0:00:17] Against Bb7} (26... Qe7 $142 27. f4 Qc7) 27. Rd2 {[%emt 0:02:57]} Re7 {[%emt 0:00:32]} 28. Red1 {[%emt 0:01:25][%cal Od5e6]} Rd8 {[%emt 0:01:25]} 29. Bf3 {[%emt 0:10:20]} Rxd2 {[%emt 0:06:39]} 30. Qxd2 {[%emt 0:03:52]} e4 {[%emt 0:01:08]} 31. Bg2 {[%emt 0:00:17]} Bc8 {[%emt 0:01:00]} 32. Qd8 {[%emt 0:06:17]} Qb7 {[%emt 0:03:10]} (32... Qxd8 $142 33. Rxd8 Be6) 33. Qd5 {[%emt 0:08:00]} Qc7 {[%emt 0:04:57]} (33... Qb4 $16) 34. Re1 {[%emt 0:06:17]} (34. Bxe4 $2 Rd7 35. Qxd7+ Bxd7 $19) (34. Qd6 $18) 34... Bb7 {[%emt 0:01:37]} 35. Qd4 {[%emt 0:00:32]} Qa5 {[%emt 0:01:11]} (35... a5 $16 36. Rd1 (36. Bxe4 Qe5 $16) 36... Bc6) 36. Re2 {[%emt 0:00:46]} Qe5 {[%emt 0:08:55]} 37. Qxe5 {[%emt 0:05:41]} Rxe5 {[%emt 0:00:24][%mdl 4096] Endgame KRB-KRB} 38. Rd2 {[%emt 0:00:58] And now Rd7+ would win.} Re7 {[%emt 0:00:35] Inhibits Rd7.} 39. Kf1 {[%emt 0:01:36]} f5 {[%emt 0:00:34]} (39... g5 {was called for.} 40. h4 gxh4 41. gxh4 f5) 40. h4 {[%emt 0:00:31]} Kf7 {[%emt 0:00:36]} 41. c5 {[%emt 0:30:23]} Rc7 {[%emt 0:34:36]} (41... a5 $142 42. Ke2 Rc7) 42. b4 {[%emt 0:00:13]} Ba6+ {[%emt 0:00:42]} 43. Ke1 {[%emt 0:00:31]} Bb7 {[%emt 0:00:43]} 44. Bf1 {[%emt 0:00:25]} Bc8 {[%emt 0:01:31]} 45. Bc4+ {[%emt 0:00:16]} Kf6 {[%emt 0:00:50]} 46. Ke2 {[%emt 0:01:49]} Ke5 {[%emt 0:04:35]} (46... Rc6 $142 47. Bb5 Rc7 48. Rd6+ Ke5 49. Rxg6 Be6) 47. Rd5+ {[%emt 0:00:31]} Kf6 {[%emt 0:00:02]} 48. Rd6+ {[%emt 0:00:38]} Ke5 {[%emt 0:01:38]} 49. Ke3 {[%emt 0:00:35]} Rg7 {[%emt 0:00:38]} 50. Rd5+ {[%emt 0:00:48]} Kf6 {[%emt 0:00:03]} 51. Kf4 {[%emt 0:00:41]} Re7 {[%emt 0:02:54]} 52. b5 $2 {[%emt 0:01:26]} (52. Rd6+ Kg7 53. Kg5) 52... e3 {[%emt 0:00:35]} 53. Rd6+ {[%emt 0:02:32]} Kg7 {[%emt 0:00:24] Threatens to win with ...Re4+.} 54. Kf3 {[%emt 0:00:59]} ({And not} 54. fxe3 Re4+ 55. Kf3 Rxc4 $17) 54... f4 {[%emt 0:00:55] Hoping for ...Bg4+.} 55. fxe3 {[%emt 0:03:14]} ({Worse is} 55. gxf4 e2 56. Bxe2 Bg4+ 57. Kg3 Rxe2 $11) 55... fxe3 {[%emt 0:00:59][%cal Oe3e2]} 56. Ke2 {[%emt 0:02:02]} Bg4+ {[%emt 0:00:34]} 57. Ke1 {[%emt 0:00:28]} Re5 {[%emt 0:03:44]} 58. c6 {[%emt 0:03:28]} Rc5 {[%emt 0:01:05]} 59. Rd4 {[%emt 0:00:36]} Kf6 {[%emt 0:00:29] [#]} 60. a4 $2 {[%emt 0:02:35]} (60. Be2 $1 $18 {[%cal Re2g4]}) 60... Ke5 $11 {[%emt 0:00:29]} 61. Rf4 {[%emt 0:00:49]} a5 $2 {[%emt 0:00:00] [#]} (61... Kd6 $11 {and Black is okay.}) 62. Kf1 $2 {[%emt 0:00:00]} (62. bxa6 $1 $18 Rxc6 63. a7) 62... Kd6 {[%emt 0:00:00] Weighted Error Value: White=0.44/Black=0.39} 1/2-1/2

[Event "44th Chess Olympiad Open 2022"]
[Site "Chennai"]
[Date "2022.07.30"]
[Round "2.64"]
[White "Gerena Rivas, Eliam"]
[Black "Tan, Santiago Jr"]
[Result "1-0"]
[ECO "B13"]
[WhiteElo "2102"]
[BlackElo "1872"]
[Annotator "TA"]
[PlyCount "83"]
[EventDate "2022.07.29"]
[EventType "team-tourn"]
[EventCountry "IND"]
[SourceTitle "playchess.com"]
[Source "ChessBase"]
[SourceQuality "1"]
[WhiteTeam "Puerto Rico"]
[BlackTeam "PLW"]
[WhiteTeamCountry "PUR"]
[TimeControl "40/5400+30:1800+30"]

{[%evp 15,83,43,41,48,63,67,81,58,71,52,92,95,93,95,142,142,262,252,254,258,300,307,294,291,334,266,284,276,331,281,286,279,292,281,270,254,262,255,262,263,335,336,336,335,322,222,468,473,453,391,426,410,406,409,420,421,426,426,447,447,1177,1180,1145,1119,29986,29987,29987,644,29988,29989]} 1. e4 {[%emt 0:00:04]} c6 {[%emt 0:00:11]} 2. d4 {[%emt 0:00:21]} d5 {[%emt 0:00:09]} 3. exd5 {[%emt 0:00:17]} cxd5 {[%emt 0:00:08]} 4. Bd3 {[%emt 0:00:12]} Nc6 {[%emt 0:00:12]} 5. c3 {[%emt 0:00:13]} Nf6 {[%emt 0:00:20]} 6. Bf4 {[%emt 0:00:17]} e6 {[%emt 0:01:38]} 7. Nd2 {[%emt 0:01:17]} Bd6 {[%emt 0:00:22]} 8. Bxd6 {[%emt 0:00:42]} Qxd6 {[%emt 0:00:09]} 9. Ngf3 {[%emt 0:00:14][%cal Bg1f3,Bf3e5,Be5f7][%mdl 32] B13: Caro-Kann: Exchange Variation and Panov-Botvinnik Attack.} h6 {[%emt 0:00:26]} 10. Qe2 {[%emt 0:00:51]} a6 {[%emt 0:01:13]} 11. a4 {[%emt 0:03:24] White is better.} O-O {[%emt 0:02:02]} 12. O-O {[%emt 0:00:18]} Re8 {[%emt 0:00:22]} 13. Ne5 {[%emt 0:02:00]} Bd7 {[%emt 0:00:31]} 14. f4 {[%emt 0:01:04] [#]} Ne7 $146 {[%emt 0:01:22]} (14... Qe7 $142) ({Predecessor:} 14... Rac8 15. Rf3 Nh7 16. Raf1 f6 17. Ng6 Ne7 18. Rg3 Nxg6 19. Bxg6 Re7 20. Bc2 b5 {0-1 (35) Lenz,J (1078)-Masek,L (966) LSS email 2016}) 15. g4 $16 {[%emt 0:02:23] g5 is the strong threat. 0x0.0013bbe7561cdp-1022s more active pieces.} Nh7 {[%emt 0:00:43] Prevents g5.} (15... g6 $16 16. g5 Nh7 17. gxh6 Nf5) 16. Bxh7+ $18 {[%emt 0:01:15]} Kxh7 {[%emt 0:00:09]} 17. Nxf7 {[%emt 0:00:21]} Qb6 {[%emt 0:00:14]} 18. Ne5 {[%emt 0:00:40]} Rad8 {[%emt 0:01:23]} 19. Qd3+ {[%emt 0:02:52]} Kg8 {[%emt 0:00:09]} 20. b4 {[%emt 0:01:46]} Rf8 {[%emt 0:00:52]} 21. Nb3 {[%emt 0:02:26]} Qd6 {[%emt 0:00:40]} 22. Nc5 {[%emt 0:00:39] Pair of Knights!} Bc8 {[%emt 0:00:14]} 23. a5 {[%emt 0:01:06]} Rf6 {[%emt 0:00:31]} 24. Rf3 {[%emt 0:09:35]} Rdf8 {[%emt 0:00:19]} 25. Raf1 {[%emt 0:00:55]} Qd8 {[%emt 0:06:39]} 26. Qe3 {[%emt 0:04:27]} Qe8 {[%emt 0:05:29]} 27. R1f2 {[%emt 0:05:51]} Ng6 {[%emt 0:05:19]} 28. Ncd3 {[%emt 0:02:25]} Ne7 {[%emt 0:06:41]} 29. h4 {[%emt 0:02:42]} h5 {[%emt 0:03:42]} 30. g5 {[%emt 0:02:15]} Nf5 $2 {[%emt 0:01:01]} (30... Rf5 31. Rg3 g6) 31. Qe2 {[%emt 0:01:04]} (31. gxf6 Nxe3 32. fxg7 Kxg7 33. Rxe3 Kh8 $18) 31... R6f7 {[%emt 0:03:49]} 32. Ng6 {[%emt 0:03:07] [#] And now Nde5 would win.} Rf6 {[%emt 0:05:35]} 33. gxf6 {[%emt 0:07:01]} ({Don't do} 33. Nxf8 Rxf8 34. Nc5 Qf7 $18) 33... Qxg6+ {[%emt 0:00:16]} 34. Rg2 {[%emt 0:00:17]} Qxf6 {[%emt 0:00:14]} 35. Rg5 {[%emt 0:00:37]} ({Don't play} 35. Rh3 e5 $18) 35... Bd7 {[%emt 0:02:26]} 36. Nc5 {[%emt 0:02:00]} Bc8 {[%emt 0:00:42]} 37. Rf2 {[%emt 0:04:24]} Nxh4 {[%emt 0:02:40]} (37... Qf7 $142 38. Rfg2 (38. Rxh5 $2 Ng3 $19) 38... Qe7 39. Qxh5 Qc7) 38. Qxh5 {[%emt 0:01:46]} Nf5 {[%emt 0:01:24]} 39. Rh2 {[%emt 0:04:17] [#] Strongly threatening Rg6.} Qe7 {[%emt 0:15:12]} 40. Qh7+ {[%emt 0:01:09]} Kf7 {[%emt 0:00:26]} 41. Qg6+ {[%emt 0:30:08]} Kg8 {[%emt 0:30:21]} 42. Rgh5 {[%emt 0:00:14] White took control after the opening.  Weighted Error Value: White=0.10 (very precise) /Black=0.56} 1-0

[Event "44th Chess Olympiad Open 2022"]
[Site "Chennai"]
[Date "2022.07.30"]
[Round "2.64"]
[White "Zilleruelo Irizarry, Diego"]
[Black "Salvadora, Angelo"]
[Result "1-0"]
[ECO "B07"]
[WhiteElo "2081"]
[BlackElo "1711"]
[Annotator "TA"]
[PlyCount "55"]
[EventDate "2022.07.29"]
[EventType "team-tourn"]
[EventCountry "IND"]
[SourceTitle "playchess.com"]
[Source "ChessBase"]
[SourceQuality "1"]
[WhiteTeam "Puerto Rico"]
[BlackTeam "PLW"]
[WhiteTeamCountry "PUR"]
[TimeControl "40/5400+30:1800+30"]

{[%evp 9,55,47,106,90,116,89,94,71,163,113,141,138,567,584,587,583,578,577,551,557,551,488,486,319,322,319,481,459,495,302,308,296,367,392,387,322,855,841,833,784,1552,1461,29984,29985,29994,29994,29994,29995]} 1. e4 {[%emt 0:00:03]} d6 {[%emt 0:00:07]} 2. d4 {[%emt 0:00:07]} Nf6 {[%emt 0:01:27]} 3. Nc3 {[%emt 0:00:07]} Bg4 {[%emt 0:04:03]} 4. Be2 {[%emt 0:02:08]} Bxe2 {[%emt 0:00:29]} 5. Qxe2 {[%emt 0:00:08]} Nc6 {[%emt 0:01:06]} ({Black should play} 5... e5 $14) 6. Be3 {[%emt 0:01:29] [#] B07: Pirc Defence: Miscellaneous Systems.} Qd7 $146 {[%emt 0:02:21]} ({Predecessor:} 6... e5 7. d5 Ne7 8. Nf3 Ng6 9. O-O Be7 10. h3 h6 11. Nh2 a6 12. f4 exf4 13. Bxf4 {½-½ (25) Venturas,B (591)-Czaban,T (794) LSS email 2016}) 7. Nf3 {[%emt 0:01:25]} a6 {[%emt 0:07:27]} 8. d5 {[%emt 0:06:35] White is better.} Na7 {[%emt 0:04:56]} (8... Ne5 $16) 9. a4 {[%emt 0:02:41]} (9. e5 $18 Ng4 10. Bxa7 Rxa7 11. O-O) 9... Qg4 {[%emt 0:00:25]} 10. h3 {[%emt 0:02:03] White is more active.} Qxg2 {[%emt 0:02:09][%mdl 8192] [#]} (10... Qc8 $16 {is more resistant.} 11. Bg5 g6) 11. O-O-O $1 $18 {[%emt 0:00:25][%cal Ba1d1,Bd1g1,Bg1g5][%mdl 32]} Qg6 {[%emt 0:01:54]} 12. Rdg1 {[%emt 0:00:54]} Qh5 {[%emt 0:07:31]} 13. Rg5 {[%emt 0:02:00]} Qh6 {[%emt 0:00:09]} 14. Rf5 {[%emt 0:06:06]} g5 {[%emt 0:15:53]} 15. Bxg5 {[%emt 0:00:45]} Qg6 {[%emt 0:05:42]} 16. Bxf6 {[%emt 0:04:42]} exf6 {[%emt 0:00:52]} 17. Kb1 {[%emt 0:01:06]} h5 {[%emt 0:04:23]} (17... Be7 $142 18. Qe3 Qg8) 18. Rg1 {[%emt 0:00:51]} Qh6 {[%emt 0:04:04]} 19. Nh4 {[%emt 0:08:21]} O-O-O {[%emt 0:01:59]} 20. Rf3 {[%emt 0:01:04]} Kb8 {[%emt 0:05:00]} 21. Nf5 {[%emt 0:02:47]} Qh7 {[%emt 0:00:23]} 22. b4 {[%emt 0:00:07]} c6 $2 {[%emt 0:01:24] [#]} (22... Rg8) 23. b5 {[%emt 0:02:28]} cxb5 {[%emt 0:03:20]} 24. axb5 {[%emt 0:00:08]} axb5 {[%emt 0:02:37]} 25. Nxb5 {[%emt 0:00:03]} Nxb5 {[%emt 0:04:45]} 26. Qxb5 {[%emt 0:00:02] White mates.} Rg8 {[%emt 0:00:16]} 27. Rxg8 {[%emt 0:00:24]} Qxg8 {[%emt 0:00:15]} 28. Rb3 {[%emt 0:00:27] Black got outplayed after the opening.  Weighted Error Value: White=0.26 (precise) /Black=0.78} 1-0

[Event "44th Chess Olympiad Open 2022"]
[Site "Chennai"]
[Date "2022.07.30"]
[Round "2.64"]
[White "Montel Jr, Cyril Tomas"]
[Black "Fellman, Mike"]
[Result "0-1"]
[ECO "A34"]
[WhiteElo "1827"]
[BlackElo "2107"]
[Annotator "TA"]
[PlyCount "66"]
[EventDate "2022.07.29"]
[EventType "team-tourn"]
[EventCountry "IND"]
[SourceTitle "playchess.com"]
[Source "ChessBase"]
[SourceQuality "1"]
[WhiteTeam "PLW"]
[BlackTeam "Puerto Rico"]
[BlackTeamCountry "PUR"]
[TimeControl "40/5400+30:1800+30"]

{[%evp 25,66,-83,-60,-85,-52,-54,-53,-76,-68,-125,-99,-177,-176,-191,-134,-202,-202,-191,-83,-464,-458,-458,-442,-420,-139,-213,-200,-282,-247,-529,-532,-529,-532,-525,-522,-2054,-2001,-29989,-29990,-29990,-29991,-29996,-29997]} 1. c4 {[%emt 0:00:05]} Nf6 {[%emt 0:00:09]} 2. g3 {[%emt 0:00:20]} c5 {[%emt 0:00:11]} 3. Bg2 {[%emt 0:00:19]} d5 {[%emt 0:00:07]} 4. cxd5 {[%emt 0:00:32]} Nxd5 {[%emt 0:00:03]} 5. Nc3 {[%emt 0:00:18]} Nc7 {[%emt 0:00:09]} 6. Nf3 {[%emt 0:00:40]} Nc6 {[%emt 0:00:09]} 7. O-O {[%emt 0:00:35]} e5 {[%emt 0:00:14]} 8. d3 {[%emt 0:01:31]} Be7 {[%emt 0:00:12]} 9. b3 {[%emt 0:01:21]} Be6 {[%emt 0:00:49]} 10. Bb2 {[%emt 0:00:31]} f6 {[%emt 0:02:36]} 11. h3 {[%emt 0:00:53]} Qd7 {[%emt 0:00:39]} 12. Kh2 {[%emt 0:00:12]} O-O {[%emt 0:01:20]} 13. Rc1 {[%emt 0:00:14]} Rac8 {[%emt 0:01:37]} 14. Nd2 {[%emt 0:07:06] [#] A34: Symmetrical English: 2 Nc3, lines with ...d5.} Rfd8 $146 {[%emt 0:03:58] Black is more active.} ({Predecessor:} 14... b6 15. Nc4 Nd4 16. e3 Nc6 17. a3 Rfd8 18. g4 Bf8 19. Qf3 Ne7 20. a4 Ned5 21. Rfd1 Nb4 {0-1 (47) Moya Pol,A-Gomez Celdran,F (1982) Benidorm 2006}) 15. f4 {[%emt 0:04:26]} exf4 {[%emt 0:03:37]} 16. Rxf4 {[%emt 0:00:18] Black is slightly better.} f5 {[%emt 0:05:59]} (16... Bd6 $6 17. Rf1 $11) 17. Nc4 {[%emt 0:23:03]} (17. Rf1 $15) 17... Bg5 {[%emt 0:06:24]} 18. Rf2 {[%emt 0:05:12]} Bxc1 $19 {[%emt 0:01:15]} 19. Qxc1 {[%emt 0:00:12]} h6 {[%emt 0:03:15]} (19... b5 $19 20. Ne3 Nd4) 20. e4 {[%emt 0:03:36]} (20. Na4 $17 b6 21. Qd2) 20... Rf8 {[%emt 0:05:08]} (20... Qxd3 21. Rd2 Bxc4 22. Rxd3 Bxd3 23. exf5 Bxf5 24. g4 $11) 21. e5 {[%emt 0:06:40]} b5 {[%emt 0:07:48] Inhibits Na4.} ({Don't take} 21... Qxd3 22. Nd6 $14 (22. Rd2 Bxc4 23. Rxd3 Bxd3 $11)) (21... Rcd8 $19 {and Black stays clearly on top. Hoping for ...Nb4.} 22. Qe3 b6) 22. Nd6 $2 {[%emt 0:00:29][%mdl 8192] White does not recover from this.} (22. Bxc6 $17 {nothing else works.} Qxc6 23. Nd6) 22... Nxe5 {[%emt 0:01:46]} 23. Nxc8 {[%emt 0:05:56][%cal Oc1e3] [#] And now Qe3! would win.} Nxd3 {[%emt 0:08:13]} ({Not} 23... Rxc8 24. Qe3 Nxd3 25. Rd2 $17) 24. Rd2 {[%emt 0:01:14][%cal Oc1f1] Strongly threatening Qf1!} Rxc8 $2 {[%emt 0:05:31]} (24... Nxc1 $19 25. Rxd7 Bxd7 26. Ne7+ Kf7) 25. Qf1 {[%emt 0:03:06]} (25. Qg1 $17 {was necessary.}) 25... c4 {[%emt 0:02:12]} 26. Ne2 {[%emt 0:02:33]} (26. bxc4 $142 bxc4 27. Qf3) 26... Nd5 {[%emt 0:03:24]} ({Weaker is} 26... cxb3 27. axb3 Bxb3 28. Nf4 $16) 27. Nf4 $2 {[%emt 0:06:06]} (27. Bd4 {was called for.}) 27... N3xf4 {[%emt 0:01:45]} 28. gxf4 {[%emt 0:01:16]} c3 {[%emt 0:01:28]} 29. Bxc3 {[%emt 0:04:59]} Rxc3 {[%emt 0:00:15]} 30. Qd1 {[%emt 0:00:12] [#]} Qc7 $1 {[%emt 0:01:22]} 31. Bxd5 {[%emt 0:04:01]} (31. Qe1 Nxf4) 31... Qxf4+ {[%emt 0:00:34] Black mates.} 32. Kg1 {[%emt 0:01:36]} Bxd5 {[%emt 0:00:35]} 33. Rxd5 {[%emt 0:02:38]} Rg3+ {[%emt 0:00:34] Weighted Error Value: White=1.28/Black=0.35} 0-1

[Event "44th Chess Olympiad Open 2022"]
[Site "Chennai"]
[Date "2022.07.30"]
[Round "2.64"]
[White "Cabunagan, Tito"]
[Black "Pinales Roussel, Gabriel"]
[Result "0-1"]
[ECO "B06"]
[WhiteElo "1706"]
[BlackElo "1973"]
[Annotator "TA"]
[PlyCount "70"]
[EventDate "2022.07.29"]
[EventType "team-tourn"]
[EventCountry "IND"]
[SourceTitle "playchess.com"]
[Source "ChessBase"]
[SourceQuality "1"]
[WhiteTeam "PLW"]
[BlackTeam "Puerto Rico"]
[BlackTeamCountry "PUR"]
[TimeControl "40/5400+30:1800+30"]

{[%evp 9,70,-6,0,0,0,-10,1,-37,-32,-37,-26,-41,-49,-64,-37,-94,-96,-81,-91,-73,-17,-108,-95,-101,-47,-41,0,-122,-54,-74,-33,-59,0,-272,-241,-419,-422,-500,-488,-479,-493,-452,-306,-306,-284,-473,-454,-556,-306,-341,-328,-332,-323,-424,-427,-552,-451,-384,-227,-229,-212,-29997,-29998]} 1. e4 {[%emt 0:00:04]} g6 {[%emt 0:00:08]} 2. f4 {[%emt 0:00:04]} d5 {[%emt 0:01:48]} 3. exd5 {[%emt 0:00:17]} Qxd5 {[%emt 0:00:23]} 4. Nf3 {[%emt 0:00:05]} Qe4+ {[%emt 0:07:21]} 5. Be2 {[%emt 0:00:02]} Qxf4 {[%emt 0:01:45] [#]} 6. d4 $146 {[%emt 0:00:24] B06: Modern Defence.} ({Predecessor:} 6. O-O Nf6 7. Nc3 Bg7 8. Nb5 Na6 9. d4 Qe4 10. Ne5 O-O 11. Nc3 Qh4 12. Rf4 {1-0 (25) Mollekens,R-Maliangkay,R Hasselt 1974}) 6... Qd6 {[%emt 0:00:27]} 7. O-O {[%emt 0:00:29]} Nf6 {[%emt 0:03:45]} 8. c4 {[%emt 0:00:29] The position is equal.} Bg7 {[%emt 0:01:13]} 9. Nc3 {[%emt 0:00:17]} O-O {[%emt 0:01:46]} 10. c5 {[%emt 0:00:34]} Qd8 {[%emt 0:01:33]} 11. h3 {[%emt 0:00:05]} Nd5 {[%emt 0:03:16]} 12. Nxd5 {[%emt 0:00:05]} (12. Bc4 $15 Be6 13. Qb3 Nxc3 14. bxc3 Bxc4 15. Qxc4) 12... Qxd5 $17 {[%emt 0:00:12]} 13. Be3 {[%emt 0:01:00]} Nc6 {[%emt 0:02:28]} 14. b3 {[%emt 0:00:15] [#]} e5 {[%emt 0:03:18]} (14... Qd8 $1 $17) 15. Ng5 {[%emt 0:00:40]} (15. Bc4 $1 $11 Qe4 16. Qd2 exd4 17. Bh6 Bxh6 18. Qxh6 Qe3+ 19. Qxe3 dxe3 20. Rfe1) 15... exd4 {[%emt 0:08:06]} 16. Bc4 {[%emt 0:00:31]} Qe5 {[%emt 0:03:38]} (16... Qxc5 $17 17. Rxf7 Rxf7 18. Nxf7 h6 19. Bxh6 Bxh6 20. Nxh6+ Kg7) 17. Bf4 $15 {[%emt 0:00:22]} Qe7 {[%emt 0:03:48] Strongly threatening ...d3.} 18. Qf3 {[%emt 0:02:08]} (18. Qe1 $1 $11) 18... Nd8 {[%emt 0:02:16]} (18... Qxc5 $6 19. Nxf7 Bf5 20. Rac1 $11) (18... Be6 $17 {Threatens to win with ...Bxc4.} 19. Nxe6 fxe6) 19. Rae1 {[%emt 0:00:41]} Be6 {[%emt 0:03:03]} 20. Qg3 {[%emt 0:02:44]} Qxc5 {[%emt 0:08:29]} (20... h6 $1 $15 21. Nxe6 Nxe6) 21. Bxe6 $4 {[%emt 0:02:56][%mdl 8192] White is on the road to losing.} (21. Qh4 $1 $11 h5 22. Bd3) 21... Nxe6 $19 {[%emt 0:02:22]} (21... fxe6 22. Rc1 Qd5 23. Rxc7 $17) 22. Nxe6 {[%emt 0:00:27]} (22. Rxe6 {was worth a try.} fxe6 23. Nxe6) 22... fxe6 {[%emt 0:00:05][%cal Bf7e6,Be6e5][%mdl 32]} 23. Rc1 {[%emt 0:00:44]} Qd5 {[%emt 0:04:04]} 24. Rxc7 {[%emt 0:04:08]} Rf5 {[%emt 0:01:13] Prevents Qg5.} 25. Rfc1 {[%emt 0:00:41]} e5 {[%emt 0:02:45]} 26. Bd2 {[%emt 0:01:43]} Rf7 {[%emt 0:04:16]} 27. R7c5 $2 {[%emt 0:00:18]} (27. Qh4 {was necessary.}) 27... Qe6 {[%emt 0:00:45] White must now prevent ...e4.} 28. Qh4 {[%emt 0:01:20]} Re8 {[%emt 0:02:12]} 29. Qe4 {[%emt 0:00:10]} Qf5 {[%emt 0:01:40]} ({Avoid the trap} 29... Qf6 $2 30. Rc8 Rff8 31. Rxe8 Qf2+ 32. Kh2 Rxe8 33. Rc2 $19) 30. Qe2 {[%emt 0:00:32]} Ref8 {[%emt 0:03:21][%cal Be8f8,Bf8d8,Bd8d1][%mdl 32]} 31. Bb4 {[%emt 0:00:08]} Rd8 {[%emt 0:01:18]} 32. Rc7 {[%emt 0:00:13]} d3 {[%emt 0:03:38]} 33. Rxf7 {[%emt 0:02:00]} dxe2 {[%emt 0:00:31] Dancing on a razor blade.} (33... Qxf7 $2 {perishes.} 34. Qe3 $19) (33... Kxf7 $142 34. Qd2 Kg8) 34. Rxf5 {[%emt 0:00:11][%cal Of5f7]} Rd1+ {[%emt 0:03:06]} ({Worse is} 34... gxf5 35. Kf2 $17) 35. Rf1 $2 {[%emt 0:00:09] [#]} (35. Kf2 $19 Rxc1 36. Rg5) 35... exf1=Q+ {[%emt 0:00:08] Weighted Error Value: White=0.71/Black=0.33} 0-1